Cogmind - Beta 16 @@@ ROGUE MODE // 2025.10.26 @ 17:53:49 Player: Bt-7274 Result: Destroyed by 7W-S6S(R) with Subdweller Beam Cannon Performance ------------- Evolutions (0) 0 Regions Visited (2) 400 Robots Destroyed (6) 30 Value Destroyed (174) 174 Prototype IDs (0) 0 Alien Tech Used (0) 0 Bonus (0) 0 TOTAL SCORE: 604 Bonus ------- None Cogmind --------- Core Integrity 0/250 Matter 300/300 Energy 87/100 System Corruption 0% Temperature Cool (9) Movement Core (150) Ox2 Location -10/Subcaves Parts ------- > --- POWER (1) -------- (None) > --- PROPULSION (2) --- (None) > --- UTILITY (2) ------ Small Storage Unit > --- WEAPON (2) ------- Subdweller Laser > --- INVENTORY (8) ---- Light Ion Engine Subdweller Optics Improved Terrain Scanner Grenade Launcher Mining Laser Scrap Shield Fragment (49) Peak State ------------ > --- POWER ------------ Ion Engine > --- PROPULSION ------- Aluminum Leg Aluminum Leg > --- UTILITY ---------- Small Storage Unit Improved Terrain Scanner > --- WEAPON ----------- Small Laser Subdweller Laser > --- INVENTORY -------- Light Ion Engine Seismic Detector Grenade Launcher Mining Laser Scrap Shield Fragment [Rating: 10] Favorites ----------- Power Ion Engine Engine Ion Engine Propulsion Aluminum Leg Leg Aluminum Leg Utility Small Storage Unit Device Improved Terrain Scanner Storage Small Storage Unit Weapon EM Pulse Gun Energy Gun EM Pulse Gun Build | -11 -10 -10 ------- Run | Yrd Mat Sub Slots Evolved . | . . . Power . | . . . Propulsion . | . . . Utility . | . . . Weapon . | . . . Parts Attached 10 | 7 . 3 Power 1 | 1 . . Engine 1 | 1 . . Core . | . . . Reactor . | . . . Propulsion 2 | 2 . . Treads . | . . . Leg 2 | 2 . . Wheel . | . . . Hover . | . . . Flight . | . . . Utility 3 | 2 . 1 Device 2 | 1 . 1 Storage 1 | 1 . . Processor . | . . . Hackware . | . . . Protection . | . . . Artifact . | . . . Weapon 4 | 2 . 2 Energy Gun 4 | 2 . 2 Energy Cannon . | . . . Ballistic Gun . | . . . Ballistic Cannon . | . . . Launcher . | . . . Special Weapon . | . . . Impact Weapon . | . . . Slashing Weapon . | . . . Piercing Weapon . | . . . Special Melee Weapon . | . . . Unidentified Prototypes . | . . . Parts Lost 7 | . . 7 Power 1 | . . 1 Propulsion 2 | . . 2 Utility 1 | . . 1 Weapon 3 | . . 3 Highest Loss Streak 4 | . . 4 To Critical Strikes . | . . . Average Backups 4 | 2 4 5 Power . | . 1 1 Propulsion . | . . . Utility 1 | . 1 1 Weapon 2 | 1 2 2 Tool/Special . | . . . Unused Backups 4 | . . 4 Power 1 | . . 1 Propulsion . | . . . Utility 1 | . . 1 Weapon 2 | . . 2 Tool/Special . | . . . Average Slot Usage (%) 89 | . 100 87 Engine 13 | . 14 13 Leg 24 | . 28 24 Device 13 | . 14 12 Storage 14 | . 14 14 Energy Gun 22 | . 28 21 Peak Build Rating 10 | 9 9 10 Average Rating 8 | 7 9 8 On Entrance 6 | . 9 9 Avg Prop Armor Cover (%) . | . . . Naked Turns . | . . . Heaviest Build 16 | 15 15 16 Greatest Support 20 | 20 20 20 Greatest Overweight (x) 2 | 1 . 2 Average Overweight (x) . | . . . Largest Inventory Capacity 8 | 8 8 8 Average Capacity 7 | 7 8 8 Most Carried 7 | 4 4 7 Average Carried 5 | 2 4 6 Final Capacity 8 | 8 8 8 Final Carried 6 | 4 4 6 Class Distribution -------------------- 100% | Mutant Dominant Class ---------------- Mutant | -10/Materials Mutant | -10/Subcaves Resources | -11 -10 -10 ----------- Run | Yrd Mat Sub Matter Collected 290 | 265 . 25 Remotely . | . . . Salvage Created 229 | 41 . 188 Parts 20 | 8 . 12 Haulers Intercepted . | . . . Recyclers Shooed . | . . . Parts Field Recycled . | . . . Retrieved Matter . | . . . Parts Self-Destructed 17 | . . 17 Prevented . | . . . Parts Restored . | . . . Kills | -11 -10 -10 ------- Run | Yrd Mat Sub Combat Hostiles Destroyed 4 | . . 4 Guns 4 | . . 4 Classes Destroyed 2 | 1 . 1 Tunneler 2 | 2 . . Subdweller 4 | . . 4 Best Kill Streak 2 | 1 . 2 Combat Bots Only 2 | . . 2 Max Kills in Single Turn 1 | 1 . 1 Gunslinging . | . . . Exploded . | . . . Melee . | . . . Uniques/NPCs Destroyed . | . . . Combat | -11 -10 -10 -------- Run | Yrd Mat Sub Hostile Shots Fired 41 | . 6 35 Missed 10 | . 2 8 Hits 31 | . 4 27 Projectile 31 | . 4 27 AOE 3 | . . 3 Damage Taken 779 | 33 33 713 Core 275 | . 10 265 Absorbed by Shields . | . . . Core Remaining (%) 100 | 100 . . Volleys Fired 24 | 3 1 20 Largest 2 | 2 2 2 Hottest 100 | 80 80 100 Shots Fired 42 | 6 2 34 Gun 42 | 6 2 34 Cannon . | . . . Launcher . | . . . Special . | . . . Kinetic . | . . . Thermal 29 | . . 29 Explosive . | . . . Electromagnetic 13 | 6 2 5 Robot Hit Streak 14 | 1 1 14 Robot Miss Streak 3 | 3 1 1 Penetration Max . | . . . Secondary Targets . | . . . Shots Hit Robots 28 | 2 1 25 Core Hits 11 | 2 . 9 Critical Kills . | . . . Critical Parts Destroyed . | . . . Critical Strikes . | . . . Melee Attacks . | . . . Impact . | . . . Slashing . | . . . Piercing . | . . . Sneak Attacks . | . . . Combat Hostiles . | . . . Follow-up Attacks . | . . . Damage Inflicted 444 | 68 12 364 Guns 401 | 25 12 364 Cannons . | . . . Explosions 35 | 35 . . Melee . | . . . Ramming 8 | 8 . . Kinetic . | . . . Thermal 353 | 35 . 318 Explosive . | . . . Electromagnetic 83 | 25 12 46 Impact . | . . . Slashing . | . . . Piercing . | . . . Highest Corruption . | . . . Average Corruption . | . . . Corruption Purged . | . . . Corruption Blocked . | . . . Overload Shots . | . . . Overflow Damage . | . . . Projectiles . | . . . Explosions . | . . . Melee . | . . . Knockbacks . | . . . Impact . | . . . Kinetic . | . . . Secondary . | . . . Self-Inflicted Damage 33 | 33 . . Shots 1 | 1 . . Rammed . | . . . Targets Rammed 4 | 4 . . Kicked 4 | 4 . . Crushed . | . . . Highest Temperature 48 | 48 18 2 Average Temperature 16 | 21 12 2 Received Heat Transfer 102 | . . 102 Siege Activations . | . . . Martial Activations . | . . . Shielding Activations . | . . . Robots Disrupted . | . . . Combat Hostiles . | . . . Robots Corrupted . | . . . Combat Hostiles . | . . . Parts Fried . | . . . Impact Corruptions . | . . . Robots Melted . | . . . Combat Hostiles . | . . . Parts Melted . | . . . Heat Transferred 500 | . . 500 Parts Sabotaged . | . . . Parts Stolen . | . . . Parts Stripped . | . . . Power Chain Reactions 1 | 1 . . Alert | -11 -10 -10 ------- Run | Yrd Mat Sub Maximum Alert Level . | . . . Low Security (%) 100 | 100 100 . Level 1 . | . . . Level 2 . | . . . Level 3 . | . . . Level 4 . | . . . Level 5 . | . . . High Security . | . . . Max Security . | . . . Peak Influence 5 | 5 . . Initial . | . . . Average . | . . . Influence Increases 10 | 10 . . Destroy 0b10 Robot/NC 10 | 10 . . Influence Decreases 10 | 10 . . Time Decay 10 | 10 . . Squads Dispatched 3 | . 3 . Investigation . | . . . Extermination . | . . . Reinforcement 3 | . 3 . Assault . | . . . Garrison . | . . . Intercept . | . . . Searches Triggered . | . . . Construction Impeded . | . . . Haulers Reinforced . | . . . Active Scanning Responses . | . . . Cargo Convoy Interrupts . | . . . Stealth | -11 -10 -10 --------- Run | Yrd Mat Sub Distress Signals . | . . . Communications Jammed . | . . . Distress Signals . | . . . Times Spotted 13 | . 5 8 Peak Tracking Total 4 | . 4 2 Tactical Retreats . | . . . Traps | -11 -10 -10 ------- Run | Yrd Mat Sub Traps Triggered . | . . . Indirectly . | . . . Trap Hack Attempts . | . . . Triggered . | . . . Disarmed . | . . . Reprogrammed . | . . . Reused . | . . . Traps Extracted . | . . . Installed . | . . . Triggered . | . . . Machines | -11 -10 -10 ---------- Run | Yrd Mat Sub Machines Disabled . | . . . Max in Single Turn . | . . . Machines Repaired . | . . . Machines Dismantled . | . . . Machines Sabotaged . | . . . Overloaded Fab Kills . | . . . Hacking | -11 -10 -10 --------- Run | Yrd Mat Sub Machines Accessed . | . . . Terminals . | . . . Fabricators . | . . . Repair Stations . | . . . Recycling Units . | . . . Scanalyzers . | . . . Garrison Access . | . . . Total Hacks . | . . . Successful . | . . . Failed . | . . . Catastrophic . | . . . Database Lockouts . | . . . Manual . | . . . Terminals . | . . . Fabricators . | . . . Repair Stations . | . . . Recycling Units . | . . . Scanalyzers . | . . . Garrison Access . | . . . Terminal Hacks . | . . . Fabricator Hacks . | . . . Repair Station Hacks . | . . . Recycling Unit Hacks . | . . . Scanalyzer . | . . . Garrison Access Hacks . | . . . Unauthorized Hacks . | . . . Terminals . | . . . Fabricators . | . . . Repair Stations . | . . . Recycling Units . | . . . Scanalyzers . | . . . Garrison Access . | . . . Data Cores Recovered . | . . . Used . | . . . Hacking Detections . | . . . Full Trace Events . | . . . Feedback Events . | . . . Feedback Blocked . | . . . Robot Schematics Acquired . | . . . Robots Built . | . . . Authchips . | . . . Time . | . . . Total Robot Build Rating . | . . . Part Schematics Acquired . | . . . Parts Built . | . . . Authchips . | . . . Time . | . . . Total Part Build Rating . | . . . Part Studies Acquired . | . . . Parts Repaired . | . . . Time . | . . . Parts Recycled . | . . . Recycled Matter . | . . . Retrieved Matter . | . . . Retrieved Components . | . . . Parts Scanalyzed . | . . . Part Schematics Acquired . | . . . Parts Damaged . | . . . Bothacking | -11 -10 -10 ------------ Run | Yrd Mat Sub Used RIF Installer . | . . . Robots Hacked . | . . . Non-combat . | . . . Combat . | . . . Robot Hacks Applied . | . . . Relay Couplers Released . | . . . Fabnet Peak Effective % . | . . . Robots Rewired . | . . . Allies Hacked . | . . . Hacks Repelled . | . . . Allies | -11 -10 -10 -------- Run | Yrd Mat Sub Total Allies . | . . . Largest Group . | . . . Highest-Rated Group . | . . . Highest-Rated Ally . | . . . Total Orders . | . . . Ally Attacks . | . . . Total Damage . | . . . Kills . | . . . Allies Corrupted . | . . . Allies Melted . | . . . Intel | -11 -10 -10 ------- Run | Yrd Mat Sub Active Infowar (turns) 904 | 66 156 682 Terrain 804 | 66 156 582 Seismic 100 | . . 100 Robot Analysis Total . | . . . Derelict Logs Recovered 1 | . . 1 Drone Launches . | . . . Drone Recoveries . | . . . Exploration | -11 -10 -10 ------------- Run | Yrd Mat Sub Turns Passed 1006 | 109 156 741 Spaces Moved 597 | 68 121 408 Core 20 | 6 . 14 Treads . | . . . Legs 577 | 62 121 394 Wheels . | . . . Hover . | . . . Flight . | . . . Fastest Speed 50 | 50 120 120 Average Speed 128 | 120 120 132 Slowest Speed 190 | 190 120 190 Overloaded Moves . | . . . Propulsion Burnouts . | . . . Robots Hopped . | . . . Potential Cave-ins . | . . . Cave-ins Triggered . | . . . Exploration Rate (%) 17 | 4 23 24 Regions Visited 2 Branch Regions 1 Pre-discovered Areas . | . . . Known Exits Taken . | . . . Unknown Exits Taken 2 | 1 1 . Scrap Searched . | . . . Spaces Dug . | . . . Terrain Destroyed 7 | 7 . . Melee . | . . . Projectile . | . . . AOE 7 | 7 . . Terrain Rammed . | . . . Walls Destroyed . | . . . Machines Disabled . | . . . Actions | -11 -10 -10 --------- Run | Yrd Mat Sub Total 792 | 85 130 577 Wait 150 | . 9 141 Move 596 | 68 120 408 Hop . | . . . Pick Up 8 | 4 . 4 Fast Attach 7 | 7 . . Attach 3 | . . 3 Detach 1 | . . 1 Swap . | . . . Drop . | . . . Fire 24 | 3 1 20 Melee . | . . . Ram . | . . . Kick 3 | 3 . . Crush . | . . . Escape Stasis . | . . . Rewire . | . . . Trap . | . . . Miscellaneous . | . . . Route ------- -11/Scrapyard -10/Materials (discovered 2 exits: [*Mat] / [*Sub]) -10/Subcaves (discovered 2 exits: [*Scr x2]) History --------- Turn | Location | Event 18 | -11/Scrapyard | Discovered new exit (range 15) 110 | -11/Scrapyard | Entered Materials 111 | -10/Materials | Met a group of wandering Federalists 208 | -10/Materials | Discovered new exit (range 12) 255 | -10/Materials | Discovered new exit (range 5) 266 | -10/Materials | Entered Subcaves 267 | -10/Subcaves | Continued accompanying wandering Federalists (4) 267 | -10/Subcaves | Approached by a straggling Scientist 301 | -10/Subcaves | Build established: Mutant 318 | -10/Subcaves | A swath of the cavern ceiling suddenly collapsed 362 | -10/Subcaves | Ambushed by Subdwellers from Twisted Machinery 473 | -10/Subcaves | Wandering Federalist uncovered a shortcut to Scraptown 825 | -10/Subcaves | Core integrity fell below 50% 982 | -10/Subcaves | Core integrity fell below 20% 1007 | -10/Subcaves | Disturbed a concealed Subdweller 1007 | -10/Subcaves | Destroyed by 7W-S6S(R) with Subdweller Beam Cannon Last Messages --------------- 00815_ WS-D0R(R): "MADSUB!" 00822_ Aluminum Leg destroyed. 3O-6VQ(c): "I think it's somewhere west of here" 00831_ WS-D0R(R) destroyed. 3O-6VQ(c): "I think it's somewhere northwest of here" 3O-6VQ(c): "We're getting close, I can feel it." 00952_ Seismic Detector destroyed. 00955_ X5-BRH(R) destroyed. 00956_ Subatomizers dissect the Corrupted Sub. Monowheel. 00961_ Acquired 5 matter. 00981_ Aluminum Leg destroyed. 00985_ Sml. Laser destroyed. 00985_ Ion Engine destroyed. 00985_ 4M-V7K(R) destroyed. 01005_ Subatomizers dissect the Corrupted Sub. Power Source. 01007_ 7W-S6S(R) angrily emerges from the Twisted Machinery. Map ----- +----------------------------------------------------+ | ?????????????????????????????????????????????????? | | ?????????????????????????????????????????????????? | | ?????????????????????????????????????????????????? | | ?????????????????????????????????????????????????? | | ?????????????????????????????????????????????????? | | ??????????????????????####???????????????????????? | | ?????????????????????? ##??????????????????????? | | ???????????#?????????? #??????????????????????? | | ???????????# ???####?? #??????????????????????? | | ????????????# ### ## #??????????????????????? | | ?????????????# * ####? ?????#???????? | | ??????????????# %& # # ?????????????? | | ???????????????# & ????????????? | | ?????????????????#" ?????????#???? | | ????????????????##" "#????????????????????? | | ??????????#?????#" ###?????>?????????????? | | ????????????????#" #####????????#?????????? | | ??????????##????## ## ##?????????????????# | | ????????????????# # #???????????#?????? | | ?#??#?????????#?### "" ##???????#??#?#???? | | ?????#???#????????# #### ####?"?????????#?? | | ???#???#???#?#????# # # # ####???#???????? | | ???????????#??????# "" #### ##?????####?## | | ??????????????????## &%"%%#<<## # ######## ### | | ????#???????????#####&&& #<$R<# # # # " " | | ??????#???####??#"# ## @&$$<# " "" | | ?#???????#?????##"""" ##<<## ## # # % " | | ?#?????#?????###"""" #### ########## ###### | | ?????#???????##=#[#*#### #????????###?#??## | | ???????????### &% %##?###########???????????????#? | | ####????????# ##""!#????##???#????????#???????#?# | | %######?### ###" !#?????##??#??????????#???????? | | ### ##?#" "##" #????????#?????#?????????????? | | ??##### ### """""" ##??#????????#??????#????????? | | ??????## # #""""""""#?#????#????#??????????#??#??? | | ???????## #"#"""""""#?????????????#??????????????# | | ????????####### """"#????????#???#??#??????#??#??? | | ?????#???????#?## ""?????#???????????????????????? | | #????????????#?????"????????#????????????#???????# | | ????????????????????????????##?#?????????????????? | | ??????#??????#???????????????????????????????????? | | ?????????#????#????????????#???????#?????????????? | | ??#??????????????????????????????????????????????? | | ???????#????????#????????????????????????????????? | | ?????????????????????????????????????????????????? | | ?????????????????????????????????????????????????? | | ?????????????????????????????????????????????????? | | ?????????????????????????????????????????????????? | | ?????????????????????????????????????????????????? | | ?????????????????????????????????????????????????? | +----------------------------------------------------+ Best States ------------- Heat Dissipation 25 Energy Generation 10 Energy Capacity 250 Matter Stores 300 Matter Capacity 300 Sight Range 16 Terrain Scan Range 16 Terrain Scan Density 10 Evasion (%) 55 Item Schematics ----------------- None Robot Schematics ------------------ None Fabricated ------------ Nothing Repaired ---------- Nothing Studied --------- None Alien Tech Used ----------------- None Achievements -------------- Strength In Numbers Challenges ------------ None Game ------ Seed RemoteTerrainHarness Manual? 0 Play Time 00:08:37 Cumulative 48.1 hours Start 2025.10.26 @ 17:46:08 End 2025.10.26 @ 17:53:49 Sessions 1 Manual Loads 0 Difficulty Rogue Special Mode None Game No. 62 Rogue 62 Adventurer 0 Explorer 0 Win Type - Total 0 Types 0/0/0/0/0/0/0/0/0/0 Lore% 24 Gallery% 41 Achievement% 23 Wizard Run 0 Options --------- Layout 1 ASCII 0 Keyboard 0 Movement Numpad Keybinds 0 Fullscreen 1 Font 32/SmallcapsGlow Map View 50x35 Zoom Use 0% Tactical HUD 1 Map Filters NONE Filters NONE Steam 1 RUN: 827bc485-13b2-444d-8d86-4d26be6ec1dd